[Event "*** Titled Tuesday Blitz"]
[Site "Chess.com"]
[Date "2021.02.09"]
[Round "3"]
[White "KuzubovYuriy"]
[Black "aa175"]
[Result "1-0"]
[WhiteElo "2826"]
[BlackElo "2599"]
[TimeControl "180+1"]
[EndTime "10:29:05 PST"]
[Termination "KuzubovYuriy won by resignation"]

1. d4 {[%clk 0:03:00.9]} 1... Nf6 {[%clk 0:02:57.6]} 2. Nf3 {[%clk 0:03:01.1]}
2... g6 {[%clk 0:02:57.5]} 3. Nbd2 {[%clk 0:03:01.2]} 3... d5 {[%clk 0:02:57.5]}
4. e3 {[%clk 0:02:59.9]} 4... Bg7 {[%clk 0:02:58]} 5. b4 {[%clk 0:03:00.2]} 5...
O-O {[%clk 0:02:57.5]} 6. Bb2 {[%clk 0:03:00.6]} 6... a5 {[%clk 0:02:57.7]} 7.
b5 {[%clk 0:03:01]} 7... c5 {[%clk 0:02:57.8]} 8. c4 {[%clk 0:03:01.1]} 8...
cxd4 {[%clk 0:02:57.6]} 9. Bxd4 {[%clk 0:03:01.7]} 9... Nbd7 {[%clk 0:02:45.7]}
10. Be2 {[%clk 0:02:59.5]} 10... b6 {[%clk 0:02:41.7]} 11. O-O {[%clk
0:02:58.8]} 11... Bb7 {[%clk 0:02:41.6]} 12. Rc1 {[%clk 0:02:59.5]} 12... Rc8
{[%clk 0:02:31.2]} 13. Rc2 {[%clk 0:02:57]} 13... Nc5 {[%clk 0:02:27.8]} 14. Qa1
{[%clk 0:02:54.4]} 14... Ne6 {[%clk 0:02:20.3]} 15. Be5 {[%clk 0:02:47]} 15...
dxc4 {[%clk 0:02:15.1]} 16. Nxc4 {[%clk 0:02:41.1]} 16... Nd5 {[%clk 0:01:49.4]}
17. Bxg7 {[%clk 0:02:37.6]} 17... Nxg7 {[%clk 0:01:50.3]} 18. Nfe5 {[%clk
0:02:25.2]} 18... f6 {[%clk 0:01:36.5]} 19. Nc6 {[%clk 0:02:24]} 19... Bxc6
{[%clk 0:01:34.8]} 20. bxc6 {[%clk 0:02:24.9]} 20... Rxc6 {[%clk 0:01:26.1]} 21.
Rd2 {[%clk 0:01:54.5]} 21... b5 {[%clk 0:01:16.1]} 22. Na3 {[%clk 0:01:49.2]}
22... b4 {[%clk 0:00:37.7]} 23. Nc4 {[%clk 0:01:38.2]} 23... Nc3 {[%clk
0:00:11]} 24. Rxd8 {[%clk 0:01:16.8]} 24... Nxe2+ {[%clk 0:00:10.8]} 25. Kh1
{[%clk 0:01:17.3]} 25... Rxd8 {[%clk 0:00:11.7]} 26. Nxa5 {[%clk 0:01:16.7]}
26... Rc2 {[%clk 0:00:11.7]} 27. Qb1 {[%clk 0:01:09]} 27... Rdd2 {[%clk
0:00:07.8]} 28. Nb3 {[%clk 0:01:07.1]} 28... Nc3 {[%clk 0:00:07.8]} 29. Qa1
{[%clk 0:00:53]} 29... Rxa2 {[%clk 0:00:07.8]} 30. Nxd2 {[%clk 0:00:52.1]} 30...
Rxa1 {[%clk 0:00:07.7]} 31. Rxa1 {[%clk 0:00:53]} 31... Ne6 {[%clk 0:00:05.8]}
32. Ra8+ {[%clk 0:00:52.8]} 32... Kf7 {[%clk 0:00:05.8]} 33. Rb8 {[%clk
0:00:53.4]} 33... Nd5 {[%clk 0:00:05.5]} 34. e4 {[%clk 0:00:53.1]} 34... Nc3
{[%clk 0:00:03.2]} 35. Rxb4 {[%clk 0:00:52.2]} 35... Nd1 {[%clk 0:00:03.5]} 36.
Kg1 {[%clk 0:00:48.1]} 36... Nf4 {[%clk 0:00:03.8]} 37. Rb3 {[%clk 0:00:42.9]}
37... Ne2+ {[%clk 0:00:02.6]} 38. Kf1 {[%clk 0:00:42.8]} 38... Nd4 {[%clk
0:00:02.4]} 39. Rd3 {[%clk 0:00:40.1]} 39... e5 {[%clk 0:00:02.9]} 40. Nc4
{[%clk 0:00:37]} 40... Nc3 {[%clk 0:00:01.4]} 41. Rxc3 {[%clk 0:00:36.8]} 41...
Ke6 {[%clk 0:00:01.6]} 42. Ra3 {[%clk 0:00:36.4]} 42... f5 {[%clk 0:00:02.1]}
43. Ra6+ {[%clk 0:00:36.3]} 43... Kf7 {[%clk 0:00:02.7]} 44. Nxe5+ {[%clk
0:00:36]} 44... Ke7 {[%clk 0:00:03.1]} 45. exf5 {[%clk 0:00:35.5]} 45... Nxf5
{[%clk 0:00:03.6]} 46. g4 {[%clk 0:00:35.3]} 46... Nh4 {[%clk 0:00:03.8]} 47. f4
{[%clk 0:00:34.6]} 47... g5 {[%clk 0:00:03.9]} 48. f5 {[%clk 0:00:34.9]} 48...
h5 {[%clk 0:00:03.8]} 49. f6+ {[%clk 0:00:34.7]} 49... Kd8 {[%clk 0:00:03.4]}
50. f7 {[%clk 0:00:34.3]} 50... Ng6 {[%clk 0:00:03.6]} 51. Nxg6 {[%clk 0:00:34]}
1-0

[Event "*** Titled Tuesday Blitz"]
[Site "Chess.com"]
[Date "2021.02.09"]
[Round "3"]
[White "karinachess1"]
[Black "rachidhuilda"]
[Result "1-0"]
[WhiteElo "2518"]
[BlackElo "2294"]
[TimeControl "180+1"]
[EndTime "10:29:05 PST"]
[Termination "karinachess1 won on time"]

1. e4 {[%clk 0:03:00.9]} 1... d5 {[%clk 0:02:59.7]} 2. exd5 {[%clk 0:03:00.7]}
2... Qxd5 {[%clk 0:03:00.3]} 3. Nc3 {[%clk 0:03:01.4]} 3... Qa5 {[%clk
0:03:00.4]} 4. d4 {[%clk 0:03:01.7]} 4... c6 {[%clk 0:03:00.9]} 5. Nf3 {[%clk
0:02:59.9]} 5... Nf6 {[%clk 0:03:01]} 6. Bc4 {[%clk 0:03:00]} 6... Bf5 {[%clk
0:03:01]} 7. Bd2 {[%clk 0:03:00.5]} 7... e6 {[%clk 0:03:01.1]} 8. Nd5 {[%clk
0:02:55.8]} 8... Qd8 {[%clk 0:03:00.8]} 9. Nxf6+ {[%clk 0:02:56.5]} 9... gxf6
{[%clk 0:03:01.4]} 10. c3 {[%clk 0:02:29.7]} 10... Nd7 {[%clk 0:02:58.9]} 11.
Qe2 {[%clk 0:02:28.4]} 11... Qc7 {[%clk 0:02:54.7]} 12. Nh4 {[%clk 0:02:15.6]}
12... Bg6 {[%clk 0:02:48.5]} 13. Nxg6 {[%clk 0:02:11.8]} 13... hxg6 {[%clk
0:02:48.1]} 14. h3 {[%clk 0:02:01.7]} 14... O-O-O {[%clk 0:02:46.4]} 15. O-O-O
{[%clk 0:01:58.2]} 15... Kb8 {[%clk 0:02:27.9]} 16. Kb1 {[%clk 0:01:57.6]} 16...
c5 {[%clk 0:02:19.3]} 17. dxc5 {[%clk 0:01:43.8]} 17... Nxc5 {[%clk 0:02:01.8]}
18. Bf4 {[%clk 0:01:25.8]} 18... e5 {[%clk 0:01:39.7]} 19. Rxd8+ {[%clk
0:01:18.5]} 19... Qxd8 {[%clk 0:01:39.8]} 20. Be3 {[%clk 0:01:19.1]} 20... Qc7
{[%clk 0:01:30.6]} 21. Rd1 {[%clk 0:01:17]} 21... Ne6 {[%clk 0:00:55]} 22. Bb5
{[%clk 0:01:04.3]} 22... Bd6 {[%clk 0:00:51.6]} 23. Qc4 {[%clk 0:00:28.8]} 23...
Rd8 {[%clk 0:00:40.2]} 24. Qxc7+ {[%clk 0:00:25.5]} 24... Bxc7 {[%clk
0:00:39.9]} 25. Rxd8+ {[%clk 0:00:24.2]} 25... Nxd8 {[%clk 0:00:37.6]} 26. Be8
{[%clk 0:00:20.4]} 26... Bd6 {[%clk 0:00:28.9]} 27. h4 {[%clk 0:00:18.7]} 27...
a6 {[%clk 0:00:28.2]} 28. g4 {[%clk 0:00:18.1]} 28... f5 {[%clk 0:00:26.9]} 29.
h5 {[%clk 0:00:17.5]} 29... gxh5 {[%clk 0:00:25.1]} 30. gxh5 {[%clk 0:00:18.4]}
30... f4 {[%clk 0:00:21.8]} 31. Bb6 {[%clk 0:00:15.8]} 31... Ne6 {[%clk
0:00:13.1]} 32. h6 {[%clk 0:00:12.5]} 32... Ng5 {[%clk 0:00:12.2]} 33. Bd8
{[%clk 0:00:13.1]} 33... Nh7 {[%clk 0:00:10.6]} 34. Bxf7 {[%clk 0:00:13.5]}
34... e4 {[%clk 0:00:10.4]} 35. Bg8 {[%clk 0:00:13.3]} 35... e3 {[%clk
0:00:07.6]} 36. fxe3 {[%clk 0:00:13.7]} 36... f3 {[%clk 0:00:02.8]} 37. Bxh7
{[%clk 0:00:13.3]} 37... Bg3 {[%clk 0:00:03.3]} 38. Bd3 {[%clk 0:00:13.6]} 38...
f2 {[%clk 0:00:03.5]} 39. h7 {[%clk 0:00:13.9]} 1-0

[Event "*** Titled Tuesday Blitz"]
[Site "Chess.com"]
[Date "2021.02.09"]
[Round "3"]
[White "Shuvalov"]
[Black "jaramsdal"]
[Result "1-0"]
[WhiteElo "2517"]
[BlackElo "2304"]
[TimeControl "180+1"]
[EndTime "10:29:05 PST"]
[Termination "Shuvalov won on time"]

1. Nf3 {[%clk 0:02:34.8]} 1... Nf6 {[%clk 0:02:59]} 2. c4 {[%clk 0:02:34.4]}
2... g6 {[%clk 0:02:56.7]} 3. Nc3 {[%clk 0:02:34.1]} 3... d5 {[%clk 0:02:53]} 4.
d4 {[%clk 0:02:33.6]} 4... Bg7 {[%clk 0:02:50.7]} 5. h4 {[%clk 0:02:33.6]} 5...
Bg4 {[%clk 0:02:46.6]} 6. Ne5 {[%clk 0:02:29.6]} 6... Bf5 {[%clk 0:02:40.1]} 7.
h5 {[%clk 0:02:25.2]} 7... gxh5 {[%clk 0:02:23.9]} 8. Bg5 {[%clk 0:02:16.3]}
8... Ne4 {[%clk 0:01:55.2]} 9. Nxe4 {[%clk 0:02:04.9]} 9... dxe4 {[%clk
0:01:56.1]} 10. e3 {[%clk 0:01:56.1]} 10... Bxe5 {[%clk 0:01:48.8]} 11. dxe5
{[%clk 0:01:52.7]} 11... Qxd1+ {[%clk 0:01:43]} 12. Rxd1 {[%clk 0:01:53.6]}
12... Nc6 {[%clk 0:01:43]} 13. Be2 {[%clk 0:01:46.9]} 13... Nxe5 {[%clk
0:01:39.2]} 14. Rxh5 {[%clk 0:01:42.7]} 14... Bg6 {[%clk 0:01:36.2]} 15. Rh4
{[%clk 0:01:34.4]} 15... Nd3+ {[%clk 0:01:34.9]} 16. Bxd3 {[%clk 0:01:32.7]}
16... exd3 {[%clk 0:01:35.8]} 17. e4 {[%clk 0:01:30.8]} 17... O-O-O {[%clk
0:01:25.9]} 18. f3 {[%clk 0:01:12.2]} 18... Rd4 {[%clk 0:00:57.2]} 19. b3 {[%clk
0:01:07.3]} 19... f5 {[%clk 0:00:57.1]} 20. Bxe7 {[%clk 0:00:56.4]} 20... Re8
{[%clk 0:00:36.4]} 21. Bc5 {[%clk 0:00:40.6]} 21... Rd7 {[%clk 0:00:34.6]} 22.
Kf2 {[%clk 0:00:30.5]} 22... fxe4 {[%clk 0:00:34.6]} 23. f4 {[%clk 0:00:26.7]}
23... b6 {[%clk 0:00:32.8]} 24. Be3 {[%clk 0:00:26.2]} 24... Rf7 {[%clk
0:00:27.3]} 25. g4 {[%clk 0:00:23.6]} 25... Ref8 {[%clk 0:00:23.4]} 26. Kg3
{[%clk 0:00:22.4]} 26... c5 {[%clk 0:00:21.3]} 27. f5 {[%clk 0:00:20.8]} 27...
Bxf5 {[%clk 0:00:21.5]} 28. gxf5 {[%clk 0:00:21.4]} 28... Rxf5 {[%clk
0:00:20.7]} 29. Rxe4 {[%clk 0:00:20.1]} 29... Rf3+ {[%clk 0:00:20]} 30. Kg2
{[%clk 0:00:20.2]} 30... R3f5 {[%clk 0:00:13.4]} 31. Rxd3 {[%clk 0:00:19.9]}
31... h5 {[%clk 0:00:12.6]} 32. Rd5 {[%clk 0:00:17.2]} 32... Rxd5 {[%clk
0:00:08.2]} 33. cxd5 {[%clk 0:00:18.1]} 33... Rf5 {[%clk 0:00:07.4]} 34. d6
{[%clk 0:00:17.8]} 34... Kd7 {[%clk 0:00:07.3]} 35. Bf4 {[%clk 0:00:18.2]} 35...
a5 {[%clk 0:00:06]} 36. Bg3 {[%clk 0:00:17.4]} 36... Rf7 {[%clk 0:00:05.2]} 37.
Rh4 {[%clk 0:00:15.6]} 37... Rh7 {[%clk 0:00:04.6]} 38. Kh3 {[%clk 0:00:15.6]}
38... b5 {[%clk 0:00:05]} 39. Re4 {[%clk 0:00:15.2]} 1-0

[Event "*** Titled Tuesday Blitz"]
[Site "Chess.com"]
[Date "2021.02.09"]
[Round "3"]
[White "Ze-Pequeno"]
[Black "Das_Virus_2020"]
[Result "0-1"]
[WhiteElo "2231"]
[BlackElo "2442"]
[TimeControl "180+1"]
[EndTime "10:29:07 PST"]
[Termination "Das_Virus_2020 won on time"]

1. e4 {[%clk 0:00:31.3]} 1... e6 {[%clk 0:02:59]} 2. d4 {[%clk 0:00:31.1]} 2...
d5 {[%clk 0:02:59.1]} 3. Nc3 {[%clk 0:00:32]} 3... Nf6 {[%clk 0:02:58.7]} 4. Bg5
{[%clk 0:00:31.2]} 4... Be7 {[%clk 0:02:58.5]} 5. e5 {[%clk 0:00:31.4]} 5...
Nfd7 {[%clk 0:02:58.4]} 6. h4 {[%clk 0:00:31.9]} 6... c5 {[%clk 0:02:58]} 7.
Bxe7 {[%clk 0:00:30.9]} 7... Kxe7 {[%clk 0:02:57.8]} 8. Qg4 {[%clk 0:00:30.7]}
8... Kf8 {[%clk 0:02:51.1]} 9. dxc5 {[%clk 0:00:28.7]} 9... Nxe5 {[%clk
0:02:49.2]} 10. Qg3 {[%clk 0:00:28.7]} 10... Nbc6 {[%clk 0:02:46.4]} 11. O-O-O
{[%clk 0:00:28.1]} 11... Qe7 {[%clk 0:02:20.1]} 12. f4 {[%clk 0:00:25.2]} 12...
Nd7 {[%clk 0:02:17.3]} 13. Nf3 {[%clk 0:00:26.1]} 13... Nxc5 {[%clk 0:02:15.7]}
14. f5 {[%clk 0:00:25.1]} 14... h6 {[%clk 0:01:31.9]} 15. Bb5 {[%clk 0:00:24]}
15... a6 {[%clk 0:01:24.3]} 16. Bxc6 {[%clk 0:00:23.5]} 16... bxc6 {[%clk
0:01:25.2]} 17. Rde1 {[%clk 0:00:20.8]} 17... Kg8 {[%clk 0:01:17.1]} 18. Rhf1
{[%clk 0:00:19.3]} 18... Kh7 {[%clk 0:01:06.3]} 19. Ne5 {[%clk 0:00:19.2]} 19...
Rg8 {[%clk 0:00:22.3]} 20. Nxc6 {[%clk 0:00:16.2]} 20... Qb7 {[%clk 0:00:20.7]}
21. Ne5 {[%clk 0:00:14]} 21... Ne4 {[%clk 0:00:20.2]} 22. Nxe4 {[%clk
0:00:12.8]} 22... dxe4 {[%clk 0:00:21.1]} 23. Qf4 {[%clk 0:00:11.5]} 23... exf5
{[%clk 0:00:20.4]} 24. h5 {[%clk 0:00:10.5]} 24... Be6 {[%clk 0:00:20.3]} 25. b3
{[%clk 0:00:10.4]} 25... Rac8 {[%clk 0:00:18.9]} 26. g4 {[%clk 0:00:10]} 26...
fxg4 {[%clk 0:00:18.2]} 27. Rxe4 {[%clk 0:00:09.3]} 27... Qc7 {[%clk 0:00:16.2]}
28. Re2 {[%clk 0:00:08.8]} 28... Qc3 {[%clk 0:00:14.7]} 29. Kb1 {[%clk
0:00:08.4]} 29... Rgf8 {[%clk 0:00:13.5]} 30. Qe4+ {[%clk 0:00:08]} 30... Kh8
{[%clk 0:00:13.2]} 31. Rg1 {[%clk 0:00:08.1]} 31... a5 {[%clk 0:00:12.9]} 32.
Re3 {[%clk 0:00:07.2]} 32... Qc5 {[%clk 0:00:11.5]} 33. Nxg4 {[%clk 0:00:04.4]}
33... Bxg4 {[%clk 0:00:10.5]} 34. Rxg4 {[%clk 0:00:03.3]} 34... Qxh5 {[%clk
0:00:09.7]} 35. Kb2 {[%clk 0:00:02.7]} 35... f6 {[%clk 0:00:08.9]} 36. Rg2
{[%clk 0:00:02.1]} 36... Rfe8 {[%clk 0:00:08.3]} 0-1

[Event "*** Titled Tuesday Blitz"]
[Site "Chess.com"]
[Date "2021.02.09"]
[Round "3"]
[White "Anurag328"]
[Black "dosto07"]
[Result "1-0"]
[WhiteElo "2646"]
[BlackElo "2420"]
[TimeControl "180+1"]
[EndTime "10:29:08 PST"]
[Termination "Anurag328 won on time"]

1. c4 {[%clk 0:03:00.9]} 1... e5 {[%clk 0:02:58.5]} 2. g3 {[%clk 0:03:01.3]}
2... Nf6 {[%clk 0:02:57.2]} 3. Bg2 {[%clk 0:03:01.6]} 3... d5 {[%clk 0:02:57.6]}
4. cxd5 {[%clk 0:03:02.2]} 4... Nxd5 {[%clk 0:02:57.9]} 5. Nc3 {[%clk
0:03:03.1]} 5... Nb6 {[%clk 0:02:58.1]} 6. Nf3 {[%clk 0:03:03.1]} 6... Nc6
{[%clk 0:02:58.4]} 7. a3 {[%clk 0:03:02.5]} 7... Be7 {[%clk 0:02:55]} 8. d3
{[%clk 0:02:46.3]} 8... O-O {[%clk 0:02:53.5]} 9. Be3 {[%clk 0:02:41.8]} 9...
Be6 {[%clk 0:02:50.4]} 10. Rc1 {[%clk 0:02:11.4]} 10... Nd5 {[%clk 0:02:46.3]}
11. Nxd5 {[%clk 0:02:01.6]} 11... Bxd5 {[%clk 0:02:46.1]} 12. O-O {[%clk
0:02:02.3]} 12... a5 {[%clk 0:02:38.5]} 13. Qa4 {[%clk 0:01:58.4]} 13... Bf6
{[%clk 0:02:25.9]} 14. Nd2 {[%clk 0:01:51.8]} 14... Bxg2 {[%clk 0:02:21.7]} 15.
Kxg2 {[%clk 0:01:51.5]} 15... Nd4 {[%clk 0:02:15.1]} 16. Bxd4 {[%clk 0:01:43.8]}
16... exd4 {[%clk 0:02:14.7]} 17. Qb5 {[%clk 0:01:38.7]} 17... Ra7 {[%clk
0:01:36.6]} 18. Ne4 {[%clk 0:00:53.6]} 18... Be7 {[%clk 0:01:32.2]} 19. Qe5
{[%clk 0:00:50.1]} 19... c6 {[%clk 0:01:23.6]} 20. Rc4 {[%clk 0:00:49.7]} 20...
Re8 {[%clk 0:00:34.6]} 21. Rxd4 {[%clk 0:00:40.9]} 21... Qc8 {[%clk 0:00:28.8]}
22. Rc1 {[%clk 0:00:34]} 22... f5 {[%clk 0:00:26.3]} 23. Nd6 {[%clk 0:00:17]}
23... Bxd6 {[%clk 0:00:24.6]} 24. Qxd6 {[%clk 0:00:17.9]} 24... Rxe2 {[%clk
0:00:23.7]} 25. b4 {[%clk 0:00:11.2]} 25... axb4 {[%clk 0:00:21.4]} 26. axb4
{[%clk 0:00:11.6]} 26... Raa2 {[%clk 0:00:17.8]} 27. Rf4 {[%clk 0:00:10.7]}
27... Qe6 {[%clk 0:00:15]} 28. Qb8+ {[%clk 0:00:09.5]} 28... Qe8 {[%clk
0:00:11.6]} 29. Qxb7 {[%clk 0:00:10.1]} 29... h6 {[%clk 0:00:10.8]} 30. Rxf5
{[%clk 0:00:08.7]} 30... Qe3 {[%clk 0:00:09.4]} 31. Qb8+ {[%clk 0:00:09.2]}
31... Kh7 {[%clk 0:00:09.1]} 32. Rf1 {[%clk 0:00:08.2]} 32... Qxd3 {[%clk
0:00:08.1]} 33. Qf4 {[%clk 0:00:07.1]} 33... Qd7 {[%clk 0:00:03.2]} 34. h4
{[%clk 0:00:07.1]} 34... Qe6 {[%clk 0:00:01.6]} 35. h5 {[%clk 0:00:07.3]} 35...
Re4 {[%clk 0:00:02]} 36. Qf3 {[%clk 0:00:07.6]} 36... Ree2 {[%clk 0:00:01.6]}
37. Rf4 {[%clk 0:00:07.9]} 37... Qe4 {[%clk 0:00:02.4]} 38. Rxe4 {[%clk
0:00:08.3]} 38... Rxe4 {[%clk 0:00:02.2]} 39. Qxe4+ {[%clk 0:00:09.2]} 1-0

[Event "*** Titled Tuesday Blitz"]
[Site "Chess.com"]
[Date "2021.02.09"]
[Round "3"]
[White "ChessFighter1975"]
[Black "lacafi"]
[Result "1-0"]
[WhiteElo "2427"]
[BlackElo "2212"]
[TimeControl "180+1"]
[EndTime "10:29:08 PST"]
[Termination "ChessFighter1975 won on time"]

1. d4 {[%clk 0:03:00.9]} 1... f5 {[%clk 0:02:59.4]} 2. g3 {[%clk 0:03:00.3]}
2... Nf6 {[%clk 0:02:58.5]} 3. Bg2 {[%clk 0:03:00.7]} 3... g6 {[%clk 0:02:58.3]}
4. Nf3 {[%clk 0:03:01.3]} 4... Bg7 {[%clk 0:02:58.7]} 5. O-O {[%clk 0:03:01.9]}
5... O-O {[%clk 0:02:59.1]} 6. c4 {[%clk 0:03:02.5]} 6... d6 {[%clk 0:02:59.4]}
7. b3 {[%clk 0:03:03]} 7... c6 {[%clk 0:02:37.9]} 8. Bb2 {[%clk 0:03:03.1]} 8...
Nbd7 {[%clk 0:02:35]} 9. Nbd2 {[%clk 0:03:03.5]} 9... Qe8 {[%clk 0:02:34.9]} 10.
Qc2 {[%clk 0:03:00.1]} 10... e5 {[%clk 0:02:34.7]} 11. dxe5 {[%clk 0:02:58]}
11... dxe5 {[%clk 0:02:34.5]} 12. e4 {[%clk 0:02:57.7]} 12... f4 {[%clk
0:02:33.5]} 13. c5 {[%clk 0:02:52]} 13... Kh8 {[%clk 0:02:17.3]} 14. Nc4 {[%clk
0:02:51.1]} 14... Ng4 {[%clk 0:01:56.9]} 15. Rad1 {[%clk 0:02:31.8]} 15... Qe7
{[%clk 0:01:42.5]} 16. h3 {[%clk 0:02:11.3]} 16... Nh6 {[%clk 0:01:41.9]} 17. g4
{[%clk 0:02:02.2]} 17... Nf7 {[%clk 0:01:34.6]} 18. Nd6 {[%clk 0:01:50.1]} 18...
Nxd6 {[%clk 0:01:04.8]} 19. Rxd6 {[%clk 0:01:51]} 19... Re8 {[%clk 0:00:23.1]}
20. Rfd1 {[%clk 0:01:46.9]} 20... Nf8 {[%clk 0:00:23.4]} 21. Qd2 {[%clk
0:01:30.1]} 21... h5 {[%clk 0:00:22.6]} 22. g5 {[%clk 0:01:28.3]} 22... a5
{[%clk 0:00:15.5]} 23. a3 {[%clk 0:01:26.9]} 23... Rb8 {[%clk 0:00:14.5]} 24.
Qxa5 {[%clk 0:01:21.9]} 24... Bd7 {[%clk 0:00:04.7]} 25. Qc7 {[%clk 0:01:18.2]}
25... Rbd8 {[%clk 0:00:04.5]} 26. Qxb7 {[%clk 0:01:15.4]} 26... Rb8 {[%clk
0:00:03.9]} 27. Qa7 {[%clk 0:01:08.4]} 27... Rxb3 {[%clk 0:00:03.8]} 28. Rxd7
{[%clk 0:01:03.9]} 28... Nxd7 {[%clk 0:00:04.3]} 29. Rxd7 {[%clk 0:01:04.5]}
29... Qf8 {[%clk 0:00:05]} 30. Bc1 {[%clk 0:00:43.3]} 30... Rb1 {[%clk
0:00:04.4]} 31. Rd1 {[%clk 0:00:42.9]} 31... Rd8 {[%clk 0:00:04.6]} 32. Re1
{[%clk 0:00:42.8]} 32... Ra8 {[%clk 0:00:03]} 33. Qd7 {[%clk 0:00:37.1]} 33...
Qxc5 {[%clk 0:00:02.6]} 34. Bd2 {[%clk 0:00:27.2]} 34... Rxe1+ {[%clk
0:00:02.3]} 35. Bxe1 {[%clk 0:00:28.1]} 35... Qc1 {[%clk 0:00:02.2]} 36. Kh2
{[%clk 0:00:15.3]} 36... Rxa3 {[%clk 0:00:02.3]} 37. Qe8+ {[%clk 0:00:08.2]}
37... Kh7 {[%clk 0:00:01.8]} 38. Nh4 {[%clk 0:00:07.8]} 1-0

[Event "*** Titled Tuesday Blitz"]
[Site "Chess.com"]
[Date "2021.02.09"]
[Round "3"]
[White "PotapovaM"]
[Black "CzechmVIII"]
[Result "1-0"]
[WhiteElo "2634"]
[BlackElo "2260"]
[TimeControl "180+1"]
[EndTime "10:29:09 PST"]
[Termination "PotapovaM won by checkmate"]

1. d4 {[%clk 0:03:00.9]} 1... Nf6 {[%clk 0:02:59.6]} 2. c4 {[%clk 0:03:01.6]}
2... c5 {[%clk 0:02:59.6]} 3. d5 {[%clk 0:03:01.8]} 3... b5 {[%clk 0:02:59.8]}
4. cxb5 {[%clk 0:03:02.7]} 4... a6 {[%clk 0:03:00.1]} 5. bxa6 {[%clk 0:03:03.6]}
5... g6 {[%clk 0:03:00.4]} 6. Nc3 {[%clk 0:03:04.2]} 6... Bxa6 {[%clk
0:03:00.4]} 7. e4 {[%clk 0:03:04.5]} 7... Qa5 {[%clk 0:03:00.4]} 8. Bd2 {[%clk
0:02:38.8]} 8... Bxf1 {[%clk 0:02:59.5]} 9. Kxf1 {[%clk 0:02:38.3]} 9... d6
{[%clk 0:03:00]} 10. Nf3 {[%clk 0:02:36.4]} 10... Bg7 {[%clk 0:02:59.3]} 11. g3
{[%clk 0:02:36.5]} 11... O-O {[%clk 0:02:58.7]} 12. Kg2 {[%clk 0:02:37.1]} 12...
Qb4 {[%clk 0:02:58.8]} 13. Qc2 {[%clk 0:02:34.6]} 13... Na6 {[%clk 0:02:58.8]}
14. a4 {[%clk 0:02:33.9]} 14... Rfb8 {[%clk 0:02:54.2]} 15. Rab1 {[%clk
0:02:26]} 15... Qb3 {[%clk 0:02:48.6]} 16. Qc1 {[%clk 0:02:10.4]} 16... Nb4
{[%clk 0:02:40.2]} 17. Qf1 {[%clk 0:01:30.5]} 17... Nc2 {[%clk 0:01:45.8]} 18.
Bg5 {[%clk 0:01:18.2]} 18... Nd4 {[%clk 0:01:31.6]} 19. Nd2 {[%clk 0:01:17.7]}
19... Qb7 {[%clk 0:01:31]} 20. Qc4 {[%clk 0:00:52.9]} 20... Ng4 {[%clk
0:01:18.5]} 21. Rhd1 {[%clk 0:00:45.7]} 21... h6 {[%clk 0:01:09.6]} 22. Be3
{[%clk 0:00:45.3]} 22... Nxe3+ {[%clk 0:00:55.8]} 23. fxe3 {[%clk 0:00:46.2]}
23... Nb3 {[%clk 0:00:56]} 24. Nf3 {[%clk 0:00:39.7]} 24... Na5 {[%clk
0:00:42.6]} 25. Qd3 {[%clk 0:00:39.9]} 25... c4 {[%clk 0:00:31.6]} 26. Qc2
{[%clk 0:00:35.7]} 26... Rc8 {[%clk 0:00:27.8]} 27. Nd4 {[%clk 0:00:34]} 27...
Qd7 {[%clk 0:00:22.5]} 28. Rf1 {[%clk 0:00:31.3]} 28... Rab8 {[%clk 0:00:19.4]}
29. Qf2 {[%clk 0:00:29.3]} 29... Rf8 {[%clk 0:00:18.1]} 30. Ncb5 {[%clk
0:00:27.3]} 30... f5 {[%clk 0:00:15.1]} 31. exf5 {[%clk 0:00:26.1]} 31... Nb7
{[%clk 0:00:10.6]} 32. Qc2 {[%clk 0:00:16.7]} 32... Nc5 {[%clk 0:00:10.2]} 33.
fxg6 {[%clk 0:00:13.9]} 33... Rxf1 {[%clk 0:00:09.2]} 34. Rxf1 {[%clk
0:00:14.8]} 34... Qg4 {[%clk 0:00:07.9]} 35. Rf4 {[%clk 0:00:11.8]} 35... Qd7
{[%clk 0:00:05.9]} 36. Qxc4 {[%clk 0:00:09.9]} 36... Rc8 {[%clk 0:00:05.1]} 37.
Qf1 {[%clk 0:00:09.9]} 37... Qe8 {[%clk 0:00:05.2]} 38. Rg4 {[%clk 0:00:08.8]}
38... Be5 {[%clk 0:00:04.6]} 39. Nc6 {[%clk 0:00:08.8]} 39... Qd7 {[%clk
0:00:04.3]} 40. Qf7+ {[%clk 0:00:08.1]} 40... Kh8 {[%clk 0:00:02.8]} 41. Qh7#
{[%clk 0:00:09]} 1-0